fUST/lending_fUST_20240626
["ID","MTS","AMOUNT","RATE_DAILY","PERIOD"]
[330360663,1719331832460,-270.5513048,0.00017699,2]
[330360708,1719331838505,-244.62411581,0.00017458,2]
[330360709,1719331838516,-2242.90420307,0.000176,2]
[330360710,1719331838529,-998.58528365,0.000176,2]
[330360711,1719331838590,-330.44616475,0.000176,2]
[330360733,1719331840799,-1428.06434853,0.000176,2]
[330360736,1719331840810,-54.6369682,0.00017699,2]
[330360737,1719331840819,-41.68671661,0.00017706,2]
[330360783,1719331843699,-1273.38959499,0.00017706,2]
[330360784,1719331843709,-622.72,0.00017899,2]
[330360785,1719331843718,-2047.39150375,0.00018,2]
[330360828,1719332076965,285.03,0.00010959,2]
[330360830,1719332087481,237.52,0.00010959,2]
[330360831,1719332098137,197.94,0.00010959,2]
[330360833,1719332105732,154.85288975,0.00013283,2]
[330360834,1719332108977,164.95,0.00010959,2]
[330360835,1719332119804,824.76,0.00010959,2]
[330360836,1719332122464,2137.77834096,0.00010959,2]
[330360837,1719332128721,4700.59664728,0.00010959,2]
[330360843,1719332176527,270.8826615,0.00013283,2]
[330360844,1719332185663,190.29980715,0.00013283,2]
[330360846,1719332201298,155.04246362,0.00013283,2]
[330360847,1719332254408,613.35,0.00010959,2]
[330360851,1719332413442,993.24338352,0.00014691,2]
[330360862,1719332472802,155.14020713,0.00014691,2]
[330360872,1719332706079,1283.28339199,0.000225,30]
[330360880,1719332968144,-162.594137,0.00016629,2]
[330360881,1719332983252,754.14530564,0.00016979,2]
[330360898,1719333031782,-324.87774632,0.0001688,2]
[330360984,1719333038439,-10121.48780938,0.0001688,2]
[330360985,1719333038450,-300.0,0.00016978,2]
[330360986,1719333038460,-300.0,0.00016978,2]
[330360987,1719333038470,-287.11909617,0.00016979,2]
[330360988,1719333038480,-6973.57101997,0.00017085,2]
[330360989,1719333038490,-5265.88974932,0.00017086,2]
[330360990,1719333038499,-154.90377583,0.0001745,4]
[330360991,1719333038509,-1631.82159369,0.0001745,2]
[330360992,1719333038519,-1631.82159369,0.00017451,2]
[330360993,1719333038529,-500.0,0.00017457,2]
[330360994,1719333038541,-500.0,0.00017457,2]
[330360995,1719333038552,-500.0,0.00017457,2]
[330360996,1719333038563,-500.0,0.00017457,2]
[330360997,1719333038574,-500.0,0.00017457,2]
[330360998,1719333038584,-500.8533353,0.00017457,2]
[330360999,1719333038594,-500.0,0.00017457,2]
[330361000,1719333038605,-175.83676609,0.00017457,2]
[330361001,1719333038615,-3285.6,0.00017552,2]
[330361002,1719333038634,-500.0,0.00017552,2]
[330361003,1719333038653,-1163.1,0.00017552,2]
[330361004,1719333038667,-2221.86,0.00017552,2]
[330361005,1719333038677,-500.0,0.00017552,2]
[330361006,1719333038687,-5280.10467953,0.00017556,2]
[330361007,1719333038696,-153.0,0.000176,2]
[330361008,1719333038706,-1085.47359044,0.00017697,2]
[330361009,1719333038717,-1051.89,0.00017697,2]
[330361010,1719333038726,-3214.98424832,0.00017698,2]
[330361011,1719333038735,-500.0,0.00017731,2]
[330361012,1719333038745,-500.0,0.00017731,2]
[330361013,1719333038756,-500.0,0.00017731,2]
[330361014,1719333038766,-500.0,0.00017731,2]
[330361015,1719333038776,-503.00827207,0.00017731,2]
[330361016,1719333038786,-500.0,0.00017731,2]
[330361017,1719333038796,-354.23753891,0.00017797,2]
[330361018,1719333038806,-26649.96,0.00017797,2]
[330361019,1719333038818,-3045.09,0.00017797,2]
[330361020,1719333038830,-5308.62,0.00017797,2]
[330361021,1719333038840,-1135.72,0.00017797,2]
[330361022,1719333038850,-501.76943426,0.00017797,2]
[330361023,1719333038860,-506.35019139,0.00017797,2]
[330361024,1719333038870,-751.97,0.00017797,2]
[330361025,1719333038880,-500.0,0.00017797,2]
[330361026,1719333038890,-2143.69,0.00017797,2]
[330361027,1719333038900,-2899.53757831,0.00017797,2]
[330361028,1719333038913,-346.77242169,0.00017797,2]
[330361029,1719333038923,-500.0,0.00017798,2]
[330361030,1719333038933,-500.0,0.00017798,2]
[330361031,1719333038943,-160.28527341,0.00017798,2]
[330361032,1719333038953,-500.0,0.00017798,2]
[330361033,1719333038963,-526.34857507,0.00017798,2]
[330361034,1719333038974,-500.0,0.00017798,2]
[330361035,1719333038984,-500.0,0.00017798,2]
[330361036,1719333038994,-1584.90497235,0.00017798,2]
[330361195,1719333041407,-309.6439095,0.00016979,2]
[330361196,1719333041417,-500.0,0.00017457,2]
[330361197,1719333041426,-500.0,0.00017731,2]
[330361198,1719333041436,-4356.24,0.00017797,2]
[330361199,1719333041445,-2889.67,0.00017798,2]
[330361200,1719333041455,-500.0,0.00017798,2]
[330361201,1719333041464,-500.0,0.00017798,2]
[330361202,1719333041473,-500.0,0.00017798,2]
[330361203,1719333041482,-500.0,0.00017798,2]
[330361204,1719333041491,-512.91828484,0.00017798,2]
[330361205,1719333041501,-5365.59,0.00017798,2]
[330361206,1719333041511,-500.0,0.00017798,2]
[330361207,1719333041520,-500.0,0.00017798,2]
[330361208,1719333041530,-500.0,0.00017798,2]
[330361209,1719333041544,-510.73529866,0.00017798,2]
[330361210,1719333041553,-179.93495506,0.00017798,2]
[330361211,1719333041566,-495.86504494,0.00017798,2]
[330361212,1719333041575,-973.94,0.00017798,2]
[330361213,1719333041586,-6084.86,0.00017798,2]
[330361214,1719333041595,-500.0,0.00017798,2]
[330361215,1719333041606,-500.0,0.00017798,2]
[330361216,1719333041616,-531.38,0.00017798,2]
[330361217,1719333041627,-1206.07,0.00017798,2]
[330361218,1719333041638,-500.0,0.00017798,2]
[330361219,1719333041647,-3285.6,0.00017826,2]
[330361220,1719333041656,-500.0,0.00017826,2]
[330361221,1719333041665,-1163.1,0.00017826,2]
[330361222,1719333041675,-2221.86,0.00017826,2]
[330361223,1719333041684,-500.0,0.00017826,2]
[330361224,1719333041693,-1085.47359043,0.00017834,2]
[330361225,1719333041702,-3214.9842483,0.00017846,2]
[330361226,1719333041711,-500.0,0.00017898,2]
[330361227,1719333041722,-500.0,0.00017898,2]
[330361228,1719333041731,-1429.67,0.00017898,2]
[330361229,1719333041740,-504.27,0.00017898,2]
[330361230,1719333041750,-500.0,0.00017898,2]
[330361231,1719333041759,-445.55366202,0.00017898,2]
[330361232,1719333041768,-500.0,0.00017898,2]
[330361233,1719333041778,-500.0,0.00017898,2]
[330361234,1719333041787,-536.8436419,0.00017898,2]
[330361235,1719333041796,-500.0,0.00017898,2]
[330361236,1719333041806,-500.0,0.00017898,2]
[330361237,1719333041817,-1580.59,0.00017898,2]
[330361238,1719333041826,-1730.19,0.00017898,2]
[330361239,1719333041836,-500.0,0.00017898,2]
[330361240,1719333041845,-6125.99,0.00017898,2]
[330361241,1719333041855,-501.54677035,0.00017898,2]
[330361243,1719333041864,-505.93058903,0.00017898,2]
[330361245,1719333041873,-500.0,0.00017898,2]
[330361247,1719333041882,-500.0,0.00017898,2]
[330361248,1719333041892,-500.0,0.00017898,2]
[330361249,1719333041901,-500.0,0.00017898,2]
[330361250,1719333041911,-500.0,0.00017898,2]
[330361251,1719333041920,-500.0,0.00017898,2]
[330361252,1719333041929,-9395.5,0.00017898,2]
[330361253,1719333041938,-500.0,0.00017898,2]
[330361255,1719333041947,-405.84288457,0.00017899,2]
[330361257,1719333041960,-515.39711543,0.00017899,2]
[330361258,1719333041975,-29149.85,0.00017899,2]
[330361259,1719333041984,-151.0,0.00017899,2]
[330361260,1719333041993,-155.027264,0.00017899,2]
[330361261,1719333042003,-985.890064,0.00017899,2]
[330361262,1719333042012,-985.890064,0.00017899,2]
[330361263,1719333042021,-151.0,0.00017899,2]
[330361264,1719333042031,-235.513965,0.00017899,2]
[330361265,1719333042040,-235.513965,0.00017899,2]
[330361266,1719333042050,-151.0,0.00017899,2]
[330361267,1719333042059,-151.0,0.00017899,2]
[330361268,1719333042070,-1085.47359043,0.00017971,2]
[330361269,1719333042079,-1051.89,0.00017971,2]
[330361270,1719333042089,-3214.9842483,0.00017994,2]
[330361271,1719333042098,-99573.90398086,0.00018,2]
[330361329,1719333045861,-293.0841251,0.00017849,2]
[330361331,1719333045870,-817.74,0.00017898,2]
[330361333,1719333045880,-500.0,0.00017898,2]
[330361334,1719333045889,-31336.56604106,0.00018,2]
[330361335,1719333045901,-1110.33389946,0.00018,2]
[330361336,1719333045938,-5000.0,0.00018,2]
[330361337,1719333045950,-928.88561513,0.00018,2]
[330361339,1719333049051,460.14,0.00010959,2]
[330361340,1719333112580,164.81209326,0.00013283,2]
[330361341,1719333138231,10975.6431261,0.00013283,2]
[330361345,1719333274163,22000.0,0.00026,120]
[330361347,1719333318322,220.11510042,0.00014691,2]
[330361354,1719333377766,155.21973654,0.00014691,2]
[330361355,1719333381405,363.7972395,0.00026,120]
[330361357,1719333388685,155.03863922,0.00014691,2]
[330361358,1719333399302,181.62639965,0.00014691,2]
[330361359,1719333401591,292.35779085,0.00014691,2]
[330361360,1719333432013,3126.1091191,0.00014691,4]
[330361375,1719333486598,292.32194747,0.00014691,2]
[330361376,1719333490403,16220.66177805,0.00014691,2]
[330361377,1719333491984,181.62639965,0.00014691,2]
[330361382,1719333582312,181.55892497,0.00014691,2]
[330361383,1719333595447,9821.56608135,0.00014691,2]
[330362840,1719334238014,-3125.46437078,0.00015339,2]
[330362842,1719334238026,-10934.77274788,0.00015339,2]
[330362844,1719334238038,-545.89969021,0.00015339,2]
[330362845,1719334238049,-159.49198486,0.00015398,2]
[330362849,1719334238080,-282.71216914,0.00015398,2]
[330362850,1719334238090,-237.4023889,0.00015439,2]
[330362851,1719334238099,-62.30298035,0.00015828,2]
[330362853,1719334238111,-222.13190565,0.00015828,2]
[330362855,1719334238121,-491.17849993,0.00015988,2]
[330362857,1719334238131,-300.0,0.00015988,2]
[330362859,1719334238141,-450.77460863,0.00015989,2]
[330362861,1719334238155,-2787.54033171,0.00015989,2]
[330362915,1719334240378,-311.20545213,0.00015989,2]
[330362916,1719334240443,-4099.73654338,0.00015989,2]
[330363215,1719334243338,-0.00128384,0.00015989,2]
[330363465,1719334246925,-615.77878989,0.00015989,2]
[330363612,1719334294850,2421.00060253,0.00014691,2]
[330363614,1719334501018,312.3863918,0.00014931,2]
[330363615,1719334575151,655.58,0.00010959,2]
[330363616,1719334579510,1017.29359727,0.00014691,2]
[330363617,1719334728566,233.0732411,0.00014086,2]
[330363618,1719334730086,655.53,0.00010959,2]
[330363620,1719334741891,3126.1091191,9.999e-05,4]
[330363623,1719334753936,2985.2876398,9.998e-05,2]
[330363624,1719334753961,6617.48440338,9.998e-05,2]
[330363714,1719334807238,164.15999865,0.00012119,2]
[330363715,1719334812603,9599.64766505,0.00012119,2]
[330363716,1719334812652,2098.89659022,9.998e-05,2]
[330363717,1719334854522,8279.8186171,0.0001,2]
[330363718,1719334862614,2098.89659022,0.00012119,2]
[330363719,1719334863666,154.83742071,0.00012119,2]
[330363720,1719334866762,1487.2316115,0.00012119,2]
[330363721,1719334868668,154.83742071,0.00012119,2]
[330363722,1719334881610,6107.0,0.000225,30]
[330363723,1719334889851,2041.04978543,9.999e-05,2]
[330363724,1719334939104,208.34949336,9.999e-05,2]
[330363725,1719334979457,2095.88987046,9.999e-05,2]
[330363726,1719334985109,208.34949336,0.0001212,2]
[330363750,1719335080127,406.14106339,0.0001212,2]
[330363751,1719335107887,933.22112394,9.999e-05,2]
[330363755,1719335145312,1117.74863961,0.0001212,2]
[330363757,1719335160397,932.9503812,0.0001212,2]
[330363760,1719335220628,250.0,0.00013214,2]
[330363769,1719335363772,521.6716256,0.00014029,7]
[330363770,1719335376653,303.28784189,9.999e-05,2]
[330363785,1719335432276,-301.81767195,0.0001403,2]
[330363787,1719335432286,-164.04847885,0.00014031,2]
[330363788,1719335432299,-300.0,0.0001413,2]
[330363790,1719335432309,-300.0,0.0001413,2]
[330363791,1719335432318,-3750.44097257,0.00014131,2]
[330363795,1719335432367,-900.80826738,0.00014131,2]
[330363835,1719335432976,273.37336231,9.9e-05,2]
[330364279,1719335438455,-3189.86401734,0.00014131,2]
[330364281,1719335438467,-333.95878176,0.00014131,2]
[330364283,1719335438480,-2388.41875195,0.00014131,2]
[330364285,1719335438491,-10145.37229091,0.00014132,2]
[330364287,1719335438503,-1798.75826366,0.00014132,2]
[330364289,1719335438515,-6319.80556288,0.00014132,2]
[330364416,1719335442543,-999.9933705,0.00014132,2]
[330364827,1719335446403,-7857.16802127,0.00014132,2]
[330364829,1719335446416,-10261.64034755,0.00014132,2]
[330365967,1719335755329,3000.0,0.00013748,2]
[330365968,1719335775645,867.4996286,0.0001374,2]
[330365969,1719335857172,457.45943987,9.999e-05,2]
[330365970,1719335898681,373.67425734,0.0001212,2]
[330365971,1719335983208,193.84908406,9.999e-05,2]
[330365973,1719336039726,516.86430218,9.999e-05,2]
[330365974,1719336085199,517.82645501,0.0001212,2]
[330365975,1719336097184,524.47181177,0.0001212,2]
[330365976,1719336097972,154.83742071,9.999e-05,2]
[330365978,1719336129150,674.573604,0.00013699,2]
[330365979,1719336137063,481.97187826,0.0001212,2]
[330365980,1719336142028,155.12235043,0.0001212,2]
[330365981,1719336142866,24900.0,0.00013705,2]
[330365982,1719336171644,209.72130719,0.0001212,2]
[330365984,1719336226925,183.70617726,9.999e-05,2]
[330365985,1719336246421,164.63956456,9.999e-05,2]
[330365986,1719336341583,528.50674641,0.0001212,2]
[330365987,1719336382267,287.11909617,0.0001212,2]
[330365988,1719336392188,-290.84069418,0.00014129,2]
[330365989,1719336481745,5280.10467953,0.00013965,2]
[330365990,1719336504783,287.09196786,0.00013965,2]
[330365991,1719336556251,180.63969836,9.999e-05,2]
[330365992,1719336558103,-1636.98463601,0.00014129,2]
[330366018,1719336632662,-5045.74568978,0.00014129,2]
[330366019,1719336632672,-287.61136781,0.00014131,2]
[330366020,1719336632681,-565.7116958,0.00014131,2]
[330366021,1719336632691,-739.43603331,0.0001427,2]
[330366023,1719336632703,-2808.4670778,0.0001427,2]
[330366026,1719336632718,-871.58543877,0.0001427,2]
[330366027,1719336632727,-159.68079105,0.00014314,2]
[330366029,1719336632736,-300.0,0.00014318,2]
[330366031,1719336632746,-300.0,0.00014318,2]
[330366033,1719336632756,-91.11742674,0.00014319,2]
[330366492,1719336638661,-737.86627416,0.00014319,2]
[330366493,1719336638671,-1871.84656378,0.00015444,2]
[330366494,1719336638819,-552.68809733,0.00015444,2]
[330366495,1719336638829,-7525.44462698,0.00015444,2]
[330366496,1719336638839,-3126.1091191,0.00015445,4]
[330366497,1719336638848,-723.85909681,0.00015445,2]
[330366498,1719336638858,-3924.1764354,0.00015446,2]
[330366499,1719336638868,-2129.54772975,0.00015446,2]
[330366500,1719336638879,-303.08343583,0.00015447,2]
[330366501,1719336638889,-207.73888966,0.00015448,2]
[330366502,1719336638900,-842.74466502,0.00015449,2]
[330366503,1719336638912,-208.77079901,0.00015449,2]
[330366504,1719336638921,-490.34211049,0.00015621,2]
[330366505,1719336638931,-267.54237493,0.00015705,2]
[330366506,1719336638941,-198.30627456,0.00015723,2]
[330366507,1719336638951,-157.20552492,0.00015723,2]
[330366508,1719336638961,-174.94513522,0.00015724,2]
[330366509,1719336638971,-305.80798029,0.00015725,2]
[330366510,1719336638981,-195.766056,0.00015725,2]
[330366511,1719336638991,-200.12543581,0.00015745,2]
[330366512,1719336639001,-1313.15766143,0.00015746,2]
[330366513,1719336639012,-155.51989188,0.00015746,2]
[330366514,1719336639022,-208.81152895,0.00015747,2]
[330366515,1719336639033,-420.0,0.0001575,2]
[330366516,1719336639043,-154.83742071,0.00015833,2]
[330366517,1719336639053,-1000.0,0.00015834,2]
[330366518,1719336639065,-154.83742071,0.00015877,2]
[330366519,1719336639075,-250.19918996,0.00015877,2]
[330366520,1719336639086,-4328.5603469,0.00015878,2]
[330366521,1719336639096,-173.74989238,0.00015968,2]
[330366522,1719336639106,-154.85288975,0.00015968,2]
[330366523,1719336639117,-597.79480567,0.00015969,2]
[330366524,1719336639127,-155.0046003,0.00015969,2]
[330366525,1719336639137,-154.83742071,0.00015969,2]
[330366526,1719336639147,-1284.46803157,0.00015969,2]
[330366527,1719336639159,-201.30767241,0.0001597,2]
[330366528,1719336639169,-155.72768735,0.0001597,2]
[330366529,1719336639180,-307.58634631,0.0001597,2]
[330366530,1719336639191,-303.17642835,0.0001597,2]
[330366531,1719336639201,-159.73407763,0.0001597,2]
[330366532,1719336639213,-162.19541868,0.0001597,4]
[330366533,1719336639223,-249.98184554,0.0001597,2]
[330366534,1719336639233,-239.60614247,0.0001597,2]
[330366535,1719336639242,-402.69286276,0.0001597,2]
[330366536,1719336639252,-154.83742071,0.0001597,2]
[330366537,1719336639262,-154.85288975,0.0001597,2]
[330366538,1719336639272,-1631.82159369,0.0001597,2]
[330366539,1719336639282,-154.83742071,0.0001597,2]
[330366540,1719336639292,-629.8425673,0.0001597,2]
[330366541,1719336639301,-155.01469654,0.0001597,2]
[330366542,1719336639311,-1487.40194776,0.0001597,2]
[330366543,1719336639321,-1913.78185736,0.0001597,2]
[330366544,1719336639331,-1117.87472833,0.0001597,2]
[330366545,1719336639341,-531.18655421,0.00015971,2]
[330366546,1719336639351,-4767.78140592,0.00015971,2]
[330366547,1719336639361,-294.24961001,0.00015971,2]
[330366548,1719336639371,-318.1015147,0.00015971,2]
[330366549,1719336639382,-155.06897929,0.00015971,2]
[330366550,1719336639392,-155.00340464,0.00015971,2]
[330366551,1719336639402,-154.83742071,0.00015972,2]
[330366552,1719336639411,-154.83742071,0.00015972,2]
[330366553,1719336639420,-154.83742071,0.00015972,2]
[330366554,1719336639431,-154.83742071,0.00015973,2]
[330366555,1719336639441,-154.83742071,0.00015973,2]
[330366557,1719336639451,-154.83742071,0.00015973,2]
[330366558,1719336639461,-154.83742071,0.00015973,2]
[330366560,1719336639471,-181.54196999,0.00015973,2]
[330366561,1719336639481,-155.0232197,0.00015973,2]
[330366562,1719336639490,-2041.04978543,0.00015973,2]
[330366563,1719336639501,-769.49085796,0.00015974,2]
[330366564,1719336639514,-178.10800907,0.00015974,2]
[330366565,1719336639524,-155.07984813,0.00015974,2]
[330366566,1719336639535,-155.38523359,0.00015974,2]
[330366567,1719336639545,-306.27049676,0.00015974,2]
[330366568,1719336639556,-1568.16643078,0.00015974,2]
[330366569,1719336639569,-547.33609862,0.00015974,2]
[330366570,1719336639579,-402.34412171,0.00015974,2]
[330366571,1719336639589,-2115.5025294,0.00015974,2]
[330366572,1719336639599,-172.70503898,0.00015974,2]
[330366573,1719336639610,-154.83742071,0.00015975,2]
[330366574,1719336639620,-195.81603609,0.00015975,2]
[330366575,1719336639630,-102.78133461,0.00015976,2]
[330366576,1719336639671,-2612.79787766,0.00015443,2]
[330366585,1719336640915,-348.45075056,0.00015443,2]
[330366586,1719336640925,-200.0,0.00015448,2]
[330366587,1719336640936,-196.10192681,0.00015968,2]
[330366588,1719336640945,-1938.26845082,0.00015976,2]
[330366589,1719336640955,-154.93373321,0.00015988,2]
[330366590,1719336640965,-304.72237056,0.00015988,2]
[330366591,1719336640975,-24.87199727,0.00015993,2]
[330366592,1719336640987,-2989.06959,0.00015993,2]
[330366760,1719336643763,-492.72037394,0.00015443,4]
[330366771,1719336643867,-2633.38874516,0.00015443,4]
[330366773,1719336643877,-629.8425673,0.00015969,2]
[330366775,1719336643888,-1314.61875962,0.00015993,2]
[330366777,1719336643897,-159.21578068,0.00015999,2]
[330366779,1719336643911,-500.0,0.00016,2]
[330366782,1719336643920,-155.79358439,0.00016,7]
[330366785,1719336643930,-154.83742071,0.00016107,2]
[330366787,1719336643939,-491.17849993,0.00016107,2]
[330366789,1719336643948,-154.83742071,0.00016107,2]
[330366790,1719336643957,-4328.56034689,0.00016108,2]
[330366792,1719336643967,-159.60581828,0.00016222,2]
[330366794,1719336643977,-3518.12105633,0.00016223,2]
[330366974,1719336645844,45010.93399669,0.00014,2]
[330367067,1719336647079,-947.59886703,0.00015972,2]
[330367069,1719336647089,-154.83742071,0.00016107,2]
[330367071,1719336647099,-810.43929056,0.00016223,2]
[330367073,1719336647108,-4328.56034689,0.00016338,2]
[330367074,1719336647118,-154.83742071,0.00016421,2]
[330367076,1719336647127,-155.538051,0.00016422,2]
[330367078,1719336647136,-293.0841251,0.00016426,2]
[330367080,1719336647146,-293.0841251,0.00016426,2]
[330367082,1719336647156,-293.0841251,0.00016426,2]
[330367084,1719336647166,-293.0841251,0.00016426,2]
[330367086,1719336647175,-293.0841251,0.00016426,2]
[330367088,1719336647184,-293.0841251,0.00016426,2]
[330367090,1719336647194,-293.0841251,0.00016426,2]
[330367092,1719336647204,-293.0841251,0.00016426,2]
[330367094,1719336647213,-293.0841251,0.00016426,2]
[330367096,1719336647222,-293.0841251,0.00016426,2]
[330367098,1719336647232,-293.0841251,0.00016426,2]
[330367100,1719336647241,-293.0841251,0.00016426,2]
[330367102,1719336647251,-151.0,0.00016437,2]
[330367104,1719336647260,-151.0,0.00016437,2]
[330367106,1719336647269,-151.0,0.00016437,2]
[330367107,1719336647278,-500.0,0.00016438,2]
[330367109,1719336647287,-449.46812694,0.00016438,2]
[330367111,1719336647299,-504.80812236,0.00016438,2]
[330367113,1719336647308,-356.23720835,0.00016438,2]
[330367115,1719336647317,-500.0,0.00016438,2]
[330367117,1719336647327,-500.0,0.00016438,2]
[330367133,1719336647470,-500.0,0.00016438,2]
[330367135,1719336647480,-506.34617374,0.00016438,2]
[330367137,1719336647489,-500.0,0.00016438,2]
[330367139,1719336647499,-500.0,0.00016438,2]
[330367141,1719336647508,-508.24901961,0.00016438,2]
[330367143,1719336647517,-500.0,0.00016438,2]
[330367145,1719336647527,-500.0,0.00016438,2]
[330367147,1719336647536,-500.0,0.00016438,2]
[330367149,1719336647545,-500.0,0.00016438,2]
[330367151,1719336647555,-500.0,0.00016438,2]
[330367153,1719336647564,-500.0,0.00016438,2]
[330367155,1719336647574,-600.46412821,0.00016438,2]
[330367157,1719336647583,-500.0,0.00016438,2]
[330367159,1719336647592,-500.0,0.00016438,2]
[330367161,1719336647601,-500.0,0.00016438,2]
[330367163,1719336647611,-500.0,0.00016438,2]
[330367165,1719336647620,-500.0,0.00016438,2]
[330367167,1719336647629,-500.0,0.00016438,2]
[330367168,1719336647638,-357.68688633,0.00016438,2]
[330367170,1719336647647,-500.0,0.00016438,2]
[330367172,1719336647658,-500.0,0.00016438,2]
[330367174,1719336647667,-500.0,0.00016438,2]
[330367176,1719336647677,-500.0,0.00016438,2]
[330367178,1719336647686,-502.16174326,0.00016438,2]
[330367181,1719336647698,-500.0,0.00016438,2]
[330367182,1719336647712,-502.96111832,0.00016438,2]
[330367184,1719336647722,-500.0,0.00016438,2]
[330367186,1719336647732,-558.8,0.00016438,2]
[330367189,1719336647744,-501.19253748,0.00016438,2]
[330367191,1719336647755,-500.0,0.00016438,2]
[330367193,1719336647764,-503.55713022,0.00016438,2]
[330367195,1719336647774,-500.0,0.00016438,2]
[330367196,1719336647783,-500.0,0.00016438,2]
[330367199,1719336647795,-500.0,0.00016438,2]
[330367201,1719336647806,-500.0,0.00016438,2]
[330367203,1719336647815,-500.0,0.00016438,2]
[330367205,1719336647825,-500.0,0.00016438,2]
[330367207,1719336647834,-500.0,0.00016438,2]
[330367208,1719336647844,-502.70780267,0.00016438,2]
[330367210,1719336647853,-637.05,0.00016438,2]
[330367212,1719336647863,-513.01742327,0.00016438,2]
[330367214,1719336647872,-500.0,0.00016438,2]
[330367216,1719336647881,-516.9570091,0.00016438,2]
[330367218,1719336647891,-615.01,0.00016438,2]
[330367220,1719336647900,-500.0,0.00016438,2]
[330367222,1719336647911,-514.71546719,0.00016438,2]
[330367224,1719336647920,-528.28324625,0.00016438,2]
[330367226,1719336647930,-504.26969638,0.00016438,2]
[330367228,1719336647939,-175.14874116,0.00016438,2]
[330367230,1719336647949,-500.0,0.00016438,2]
[330367232,1719336647958,-510.5453514,0.00016438,2]
[330367234,1719336647968,-504.31151531,0.00016438,2]
[330367236,1719336647977,-500.0,0.00016438,2]
[330367238,1719336647986,-507.79740601,0.00016438,2]
[330367240,1719336647997,-500.0,0.00016438,2]
[330367242,1719336648006,-496.43324834,0.00016438,2]
[330367244,1719336648024,-4.81439218,0.00016438,2]
[330367246,1719336648033,-500.0,0.00016438,2]
[330367248,1719336648043,-165.18560782,0.00016438,2]
[330367849,1719336906526,3923.729,0.00014,2]
[330367850,1719336913519,-723.85909681,0.00014691,2]
[330367851,1719336913544,-723.85909681,0.00014939,2]
[330367852,1719336913569,-1588.6733583,0.0001494,2]
[330367853,1719336913935,24900.0,0.00014652,2]
[330367858,1719337019478,3000.0,0.00014785,2]
[330367862,1719337110083,1313.15766143,0.00014691,2]
[330367866,1719337200723,1329.2387037,0.00014899,2]
[330367869,1719337316676,904.094117,0.00014809,2]
[330367870,1719337369974,318.1015147,0.00014691,2]
[330367871,1719337400004,318.1015147,0.00014691,2]
[330367873,1719337409633,9602.77204318,0.00014691,2]
[330367874,1719337460469,24900.0,0.00014647,2]
[330367878,1719337644117,842.74466502,0.00014691,2]
[330367879,1719337677479,42185.65991976,0.00014691,2]
[330367880,1719337730284,156.2378591,0.00014691,2]
[330367881,1719337736353,2207.76257056,0.00014963,2]
[330367882,1719337795391,150.0,0.00027,120]
[330367903,1719337833028,-521.06468489,0.0001506,7]
[330367905,1719337833037,-154.83742071,0.0001506,2]
[330367907,1719337833046,-458.54129141,0.0001506,2]
[330367908,1719337833055,-622.60782854,0.00015061,2]
[330367909,1719337833067,-220.13683648,0.00015061,2]
[330367910,1719337833076,-842.74466502,0.00015061,2]
[330367911,1719337833085,-202.59555949,0.00015177,2]
[330367912,1719337833094,-491.48163536,0.00015705,2]
[330367913,1719337833103,-154.83742071,0.00015705,2]
[330367914,1719337833112,-13103.59761363,0.00015806,2]
[330367915,1719337833124,-604.99998376,0.00015806,2]
[330367916,1719337833141,-6688.48466544,0.00015806,2]
[330368391,1719337839042,-348.0,0.00015806,2]
[330368393,1719337839056,-5313.73709778,0.00015806,2]
[330368395,1719337839067,-300.0,0.00015987,2]
[330368396,1719337839077,-300.0,0.00015987,2]
[330368398,1719337839087,-17229.55965979,0.00015999,2]
[330368400,1719337839097,-8000.0,0.00016,2]
[330368401,1719337839107,-293.0841251,0.00016,2]
[330368403,1719337839118,-293.0841251,0.00016,2]